bitfinex-derivatives/quotes_SOLF0:USTF0_20250831
["timestamp","ask_amount","ask_price","bid_price","bid_amount"]
[1756602595371,7.52,204.64,204.57,4.0477142]
[1756602595572,7.52,204.64,204.58,4.0477142]
[1756602596171,7.52,204.64,204.57,4.0477142]
[1756602597962,7.52,204.64,204.58,1.46951645]
[1756602599266,7.52,204.64,204.58,3.87951645]
[1756602599468,7.52,204.64,204.58,1.46951645]
[1756602600075,7.52,204.64,204.56,4.0477142]
[1756602600278,7.52,204.64,204.56,1.46951645]
[1756602600966,7.52,204.68,204.59,1.46951645]
[1756602603275,7.52,204.68,204.57,2.41]
[1756602606677,7.52,204.68,204.57,6.4577142]
[1756602606875,132.0,204.68,204.57,6.44697483]
[1756602610283,7.52,204.68,204.58,1.46951645]
[1756602610483,7.5,204.66,204.58,1.46951645]
[1756602610681,7.5,204.66,204.59,2.37]
[1756602610878,7.5,204.76,204.64,1.46951645]
[1756602611080,7.5,204.74,204.64,1.46951645]
[1756602611476,7.5,204.74,204.62,2.37]
[1756602614881,54.68951645,204.74,204.62,2.37]
[1756602615888,54.68951645,204.74,204.6,1.46951645]
[1756602616084,7.5,204.7,204.59,2.37]
[1756602616278,7.5,204.7,204.57,3.83951645]
[1756602616486,7.5,204.7,204.57,7.87649128]
[1756602616987,7.5,204.7,204.57,3.83951645]
[1756602617183,7.5,204.7,204.57,7.87649128]
[1756602619382,1.46951645,204.69,204.57,2.37]
[1756602619581,1.46951645,204.69,204.54,5.37576708]
[1756602619582,7.5,204.65,204.54,2.37]
[1756602619786,7.5,204.65,204.56,1.46951645]
[1756602621089,7.5,204.65,204.56,7.87649128]
[1756602622189,7.5,204.65,204.56,6.41040515]
[1756602622982,7.5,204.65,204.57,4.04040515]
[1756602623890,7.5,204.65,204.58,7.9099216]
[1756602624086,7.5,204.65,204.59,4.04040515]
[1756602624980,7.5,204.65,204.58,4.04040515]
[1756602625185,7.5,204.65,204.56,5.5099216]
[1756602625482,7.5,204.65,204.55,4.04040515]
[1756602626285,7.5,204.65,204.54,6.44040515]
[1756602627790,7.5,204.65,204.54,4.04040515]
[1756602633093,7.5,204.65,204.53,6.44040515]
[1756602633392,7.5,204.65,204.55,4.04040515]
[1756602634193,7.5,204.65,204.55,5.5099216]
[1756602634395,7.5,204.65,204.57,2.4]
[1756602635887,7.5,204.65,204.55,4.04040515]
[1756602636895,7.5,204.65,204.54,2.4]
[1756602636896,7.5,204.65,204.54,6.44040515]
[1756602639193,7.5,204.65,204.54,2.4]
[1756602639399,7.86,204.63,204.54,2.4]
[1756602641697,7.86,204.63,204.52,4.04040515]
[1756602642293,7.86,204.63,204.51,6.45040515]
[1756602642499,7.86,204.6,204.51,2.41]
[1756602642893,7.86,204.6,204.5,4.04040515]
[1756602643093,36.9,204.6,204.49,5.5099216]
[1756602643295,36.9,204.6,204.49,4.04040515]
[1756602643496,36.9,204.6,204.48,6.45040515]
[1756602644396,7.86,204.57,204.48,2.41]
[1756602645097,7.86,204.57,204.46,4.04040515]
[1756602645098,7.86,204.57,204.45,5.5099216]
[1756602646999,7.86,204.57,204.45,4.04040515]
[1756602647199,7.86,204.57,204.44,7.9199216]
[1756602648602,7.86,204.57,204.45,2.41]
[1756602649906,7.86,204.57,204.48,2.41]
[1756602650305,7.86,204.57,204.51,2.41]
[1756602651503,1.46951645,204.62,204.51,2.41]
[1756602651702,7.86,204.61,204.51,2.41]
[1756602656108,7.86,204.61,204.51,6.45040515]
[1756602656407,7.86,204.61,204.52,2.41]
[1756602662312,7.86,204.61,204.52,6.45040515]
[1756602664113,7.86,204.61,204.52,2.41]
[1756602667116,7.86,204.61,204.52,6.44982867]
[1756602667612,7.86,204.61,204.52,2.41]
[1756602668513,7.86,204.61,204.49,5.37576708]
[1756602668514,9.32951645,204.61,204.49,4.03982867]
[1756602673313,1.46951645,204.58,204.48,4.03982867]
[1756602673513,7.98,204.57,204.48,4.03982867]
[1756602674213,7.98,204.55,204.48,4.03982867]
[1756602677118,7.98,204.55,204.47,4.03982867]
[1756602677617,7.98,204.55,204.48,2.4]
[1756602677816,34.34,204.59,204.5,2.4]
[1756602678023,3.65899155,204.58,204.5,2.4]
[1756602678216,42.32,204.59,204.5,6.43982867]
[1756602678416,7.98,204.59,204.5,2.4]
[1756602678621,7.98,204.59,204.52,1.46951645]
[1756602678916,7.98,204.59,204.53,2.4]
[1756602681316,130.88,204.65,204.55,3.86951645]
[1756602681722,130.88,204.65,204.55,2.4]
[1756602682319,131.92,204.65,204.55,2.4]
[1756602683623,131.9,204.65,204.55,2.4]
[1756602685421,7.98,204.65,204.55,2.4]
[1756602685626,131.88,204.65,204.53,5.50934512]
[1756602688626,131.88,204.65,204.54,2.41]
[1756602688829,7.98,204.65,204.57,2.41]
[1756602690629,7.98,204.65,204.57,6.44982867]
[1756602691226,123.84,204.7,204.59,1.46951645]
[1756602691427,7.98,204.69,204.6,2.41]
[1756602691727,7.98,204.69,204.58,4.03982867]
[1756602691926,7.98,204.69,204.56,7.91934512]
[1756602692129,7.98,204.69,204.56,6.44982867]
[1756602693133,7.98,204.69,204.57,4.03982867]
[1756602693819,7.98,204.69,204.56,2.41]
[1756602694630,7.98,204.66,204.56,2.41]
[1756602697432,7.98,204.66,204.58,1.46951645]
[1756602697832,7.98,204.66,204.59,6.43982867]
[1756602698028,7.98,204.66,204.59,2.4]
[1756602714150,7.98,204.66,204.58,1.46951645]
[1756602721647,7.98,204.66,204.58,3.86951645]
[1756602721846,7.98,204.66,204.58,7.90934512]
[1756602722953,7.98,204.66,204.59,4.03982867]
[1756602724958,7.98,204.66,204.58,7.90934512]
[1756602725150,7.98,204.66,204.56,4.03982867]
[1756602725348,7.98,204.66,204.55,4.03982867]
[1756602727048,7.98,204.66,204.54,4.03982867]
[1756602727858,1.46951645,204.65,204.54,4.03982867]
[1756602728057,7.4,204.64,204.54,4.03982867]
[1756602730463,7.4,204.62,204.54,4.03982867]
[1756602733066,7.4,204.62,204.53,6.44982867]
[1756602735365,8.86951645,204.62,204.52,4.03982867]
[1756602735667,8.86951645,204.62,204.5,6.44982867]
[1756602736067,8.86951645,204.62,204.5,4.03982867]
[1756602736264,8.86951645,204.62,204.49,5.50934512]
[1756602737769,1.46951645,204.59,204.49,4.03982867]
[1756602737968,7.4,204.58,204.47,2.41]
[1756602740168,7.4,204.58,204.45,1.46951645]
[1756602740672,1.46951645,204.56,204.45,1.46951645]
[1756602740873,7.4,204.54,204.45,1.46951645]
[1756602741771,7.4,204.54,204.42,4.05222596]
[1756602741976,7.4,204.54,204.24,1.46951645]
[1756602741977,7.4,204.54,204.43,3.88951645]
[1756602742276,28.08,204.53,204.44,2.42]
[1756602742476,7.4,204.52,204.44,2.42]
[1756602743776,7.4,204.52,204.46,1.46951645]
[1756602743976,7.4,204.55,204.47,2.42]
[1756602744677,7.4,204.55,204.46,1.46951645]
[1756602745072,130.72,204.55,204.46,1.46951645]
[1756602745273,7.4,204.55,204.46,1.46951645]
[1756602745566,130.72,204.55,204.46,1.46951645]
[1756602745774,130.72,204.55,204.44,3.88951645]
[1756602746478,7.4,204.55,204.44,3.88951645]
[1756602746669,130.72,204.55,204.44,3.88951645]
[1756602750681,7.4,204.53,204.44,3.88951645]
[1756602751882,7.4,204.53,204.44,2.42]
[1756602756484,1.46951645,204.51,204.41,2.42]
[1756602756682,7.4,204.5,204.41,2.42]
[1756602759387,1.46951645,204.48,204.36,4.05222596]
[1756602759692,7.36,204.41,204.32,2.38]
[1756602759991,121.6,204.41,204.32,2.38]
[1756602761284,7.36,204.41,204.32,2.38]
[1756602761490,15.52,204.41,204.32,2.38]
[1756602761987,7.36,204.41,204.32,2.38]
[1756602774892,7.36,204.41,204.35,2.38]
[1756602777995,7.36,204.47,204.37,1.46951645]
[1756602778202,7.36,204.47,204.38,2.38]
[1756602782305,7.36,204.47,204.34,7.90174241]
[1756602782512,7.36,204.47,204.34,3.84951645]
[1756602783212,24.26,204.47,204.34,3.84951645]
[1756602784205,24.26,204.47,204.34,7.90174241]
[1756602786215,24.26,204.47,204.34,6.43222596]
[1756602786417,24.26,204.47,204.35,1.46951645]
[1756602788015,44.2,204.47,204.35,1.46951645]
[1756602789209,44.2,204.47,204.35,5.52174241]
[1756602789919,7.36,204.47,204.35,5.52174241]
[1756602790120,63.14,204.47,204.35,5.52174241]
[1756602792317,81.1,204.47,204.35,5.52174241]
[1756602793417,81.1,204.47,204.36,2.42]
[1756602794013,81.1,204.47,204.36,6.47222596]
[1756602794822,7.36,204.47,204.36,6.47222596]
[1756602795317,7.36,204.47,204.37,4.05222596]
[1756602799323,7.36,204.47,204.38,4.05222596]
[1756602799919,7.58,204.45,204.36,4.05222596]
[1756602800123,7.58,204.45,204.35,4.05222596]
[1756602800520,7.58,204.45,204.36,4.05222596]
[1756602801321,7.58,204.45,204.37,4.05222596]
[1756602801929,7.58,204.45,204.36,4.05222596]
[1756602802429,7.58,204.45,204.37,4.05222596]
[1756602812939,7.58,204.43,204.38,2.39]
[1756602813141,122.86,204.44,204.38,2.39]
[1756602813537,7.58,204.43,204.38,2.39]
[1756602813834,7.58,204.43,204.37,4.05222596]
[1756602814035,7.58,204.43,204.36,4.05222596]
[1756602817840,7.58,204.43,204.35,6.44222596]
[1756602818748,7.58,204.43,204.35,4.05222596]
[1756602818948,7.58,204.43,204.33,4.05222596]
[1756602818949,9.04951645,204.43,204.33,4.05222596]
[1756602822049,9.04951645,204.43,204.33,6.47222596]
[1756602825251,9.04951645,204.43,204.33,2.42]
[1756602825947,7.58,204.43,204.35,2.42]
[1756602827151,7.58,204.43,204.35,6.47222596]
[1756602828752,7.58,204.43,204.35,2.42]
[1756602833246,0.94398249,204.41,204.35,2.42]
[1756602833446,0.94398249,204.39,204.33,4.05222596]
[1756602833648,7.69,204.38,204.32,7.41620845]
[1756602834854,7.69,204.38,204.32,6.47222596]
[1756602835956,7.69,204.38,204.32,7.41620845]
[1756602836657,7.69,204.38,204.32,2.42]
[1756602836959,7.69,204.38,204.32,6.50844899]
[1756602838559,7.69,204.38,204.32,2.42]
[1756602841656,7.69,204.38,204.31,4.08844899]
[1756602841862,7.69,204.38,204.3,4.08844899]
[1756602843566,7.69,204.38,204.3,6.50844899]
[1756602846675,7.69,204.38,204.25,8.03779026]
[1756602846676,7.69,204.38,204.29,4.08844899]
[1756602846974,7.69,204.38,204.29,6.50844899]
[1756602847774,7.69,204.38,204.29,2.42]
[1756602848478,1.47533689,204.37,204.27,4.08844899]
[1756602848674,1.47533689,204.37,204.26,4.08844899]
[1756602848675,7.4,204.36,204.26,4.08844899]
[1756602849475,7.4,204.36,204.25,6.50844899]
[1756602849675,7.4,204.36,204.26,4.08844899]
[1756602850269,7.4,204.33,204.25,6.50844899]
[1756602850778,7.4,204.31,204.25,2.42]
[1756602851177,32.76,204.31,204.25,2.42]
[1756602851371,7.4,204.31,204.25,2.42]
[1756602858576,7.4,204.35,204.29,2.42]
[1756602858981,7.4,204.33,204.29,2.42]
[1756602859382,0.94482796,204.34,204.29,2.42]
[1756602859575,7.4,204.33,204.29,2.42]
[1756602859882,0.94482796,204.34,204.29,2.42]
[1756602860277,7.4,204.33,204.29,2.42]
[1756602860776,0.94482796,204.36,204.29,0.94482796]
[1756602860980,7.4,204.37,204.31,0.94482796]
[1756602861282,7.4,204.37,204.31,3.36482796]
[1756602862180,7.4,204.37,204.31,2.42]
[1756602862483,7.4,204.37,204.3,0.94482796]
[1756602863283,7.4,204.37,204.29,4.08844899]
[1756602863580,7.4,204.37,204.28,6.50844899]
[1756602863782,7.4,204.37,204.28,2.42]
[1756602866378,8.87557812,204.37,204.28,2.42]
[1756602867283,7.4,204.37,204.28,2.42]
[1756602869285,7.4,204.35,204.28,2.42]
[1756602869583,122.42,204.34,204.28,2.42]
[1756602869784,7.4,204.33,204.28,2.42]
[1756602870085,122.42,204.34,204.28,2.42]
[1756602870379,328.92,204.38,204.27,2.44]
[1756602870585,129.8,204.37,204.28,2.44]
[1756602871384,7.4,204.37,204.28,2.44]
[1756602871584,122.4,204.36,204.29,2.44]
[1756602872788,122.38,204.36,204.29,2.44]
[1756602873892,7.4,204.35,204.29,2.44]
[1756602874493,129.78,204.35,204.29,2.44]
[1756602875488,7.4,204.35,204.29,2.44]
[1756602875691,43.0,204.35,204.29,2.44]
[1756602875894,7.4,204.35,204.29,2.44]
[1756602876093,7.4,204.35,204.29,6.52844899]
[1756602876994,1.47557812,204.42,204.3,2.44]
[1756602877193,7.4,204.4,204.31,4.08844899]
[1756602877692,35.6,204.39,204.32,2.41]
[1756602878193,7.23,204.38,204.32,2.41]
[1756602878895,76.33,204.38,204.32,2.41]
[1756602880089,7.23,204.38,204.32,6.49844899]
[1756602880895,7.23,204.38,204.31,4.08844899]
[1756602881091,7.23,204.38,204.32,4.08844899]
[1756602881295,7.23,204.38,204.3,4.08844899]
[1756602881793,7.23,204.38,204.31,4.08844899]
[1756602881993,7.23,204.38,204.3,4.08844899]
[1756602882995,7.23,204.38,204.29,6.49844899]
[1756602883396,0.94432785,204.37,204.3,5.03277684]
[1756602883897,7.23,204.36,204.3,5.03277684]
[1756602884299,7.23,204.36,204.3,0.94432785]
[1756602886101,7.23,204.36,204.29,2.41]
[1756602886301,7.23,204.36,204.3,0.94432785]
[1756602886497,7.23,204.36,204.29,2.41]
[1756602886703,7.23,204.36,204.3,0.94432785]
[1756602887103,7.23,204.36,204.29,2.41]
[1756602887104,7.23,204.36,204.29,3.35432785]
[1756602887601,8.17432785,204.36,204.29,3.35432785]
[1756602889604,7.23,204.36,204.29,3.35432785]
[1756602893105,7.23,204.36,204.27,4.08844899]
[1756602893106,7.23,204.36,204.31,0.94432785]
[1756602893804,7.23,204.36,204.32,2.41]
[1756602894006,0.94432785,204.39,204.32,2.41]
[1756602894206,7.23,204.38,204.32,2.41]
[1756602897410,7.23,204.42,204.35,3.35432785]
[1756602898710,7.23,204.42,204.35,7.44851215]
[1756602898913,7.23,204.42,204.36,4.0941843]
[1756602899116,7.23,204.42,204.36,5.03851215]
[1756602899309,7.23,204.42,204.36,4.0941843]
[1756602899913,7.23,204.42,204.35,6.5041843]
[1756602900308,7.23,204.42,204.36,4.0941843]
[1756602900510,7.23,204.42,204.37,2.41]
[1756602900711,328.94,204.45,204.36,4.0941843]
[1756602900915,336.17,204.45,204.37,2.41]
[1756602903416,336.17,204.45,204.34,5.56874127]
[1756602903617,337.64455697,204.45,204.34,4.0941843]
[1756602904120,7.23,204.43,204.34,6.5041843]
[1756602904319,3.65881372,204.42,204.34,6.5041843]
[1756602904614,7.23,204.43,204.35,6.5041843]
[1756602904615,10.88881372,204.41,204.35,6.5041843]
[1756602904809,7.23,204.41,204.36,2.41]
[1756602905011,7.23,204.41,204.37,2.41]
[1756602905212,7.23,204.41,204.38,2.41]
[1756602907316,122.14,204.44,204.36,2.41]
[1756602907523,122.14,204.44,204.36,6.5041843]
[1756602908021,7.62,204.43,204.36,6.5041843]
[1756602908421,7.62,204.43,204.37,3.88455697]
[1756602908718,122.1,204.46,204.37,3.88455697]
[1756602908719,122.1,204.47,204.38,2.41]
[1756602908919,7.62,204.46,204.38,2.41]
[1756602909612,7.62,204.46,204.41,2.41]
[1756602909824,7.62,204.46,204.4,1.47455697]
[1756602910121,122.1,204.48,204.41,2.41]
[1756602910821,122.1,204.48,204.37,4.0941843]
[1756602910822,7.62,204.47,204.36,3.88455697]
[1756602911024,7.62,204.47,204.36,2.41]
[1756602911324,7.62,204.45,204.33,1.47455697]
[1756602912925,7.62,204.45,204.32,2.41]
[1756602915527,7.62,204.45,204.35,2.41]
[1756602916021,7.62,204.45,204.38,2.41]
[1756602917026,7.62,204.45,204.4,1.47455697]
[1756602917228,7.62,204.49,204.41,2.41]
[1756602917925,7.62,204.49,204.39,1.47455697]
[1756602920920,7.62,204.49,204.39,3.88455697]
[1756602921125,7.62,204.49,204.42,1.47455697]
[1756602925035,7.62,204.49,204.42,3.88455697]
[1756602927135,129.62,204.53,204.46,2.41]
[1756602928536,7.62,204.53,204.48,1.47455697]
[1756602928837,7.62,204.55,204.48,1.47455697]
[1756602929140,7.62,204.55,204.46,3.88455697]
[1756602932540,7.62,204.55,204.47,1.47455697]
[1756602936340,7.62,204.55,204.42,3.88455697]
[1756602937244,1.47455697,204.54,204.42,3.88455697]
[1756602937445,1.47455697,204.54,204.42,1.47455697]
[1756602937446,7.62,204.53,204.42,1.47455697]
[1756602937844,7.62,204.53,204.4,1.47455697]
[1756602940546,7.62,204.53,204.39,2.41]
[1756602940848,7.62,204.53,204.39,3.88455697]
[1756602943640,7.31,204.5,204.39,1.47455697]
[1756602943842,25.25,204.5,204.39,1.47455697]
[1756602944947,25.25,204.5,204.36,6.5041843]
[1756602945138,25.25,204.5,204.37,1.47455697]
[1756602945342,25.25,204.5,204.38,2.41]
[1756602946448,7.31,204.5,204.4,1.47455697]
[1756602948153,7.31,204.5,204.4,3.88455697]
[1756602949752,7.31,204.5,204.4,2.41]
[1756602949951,7.31,204.5,204.41,1.47455697]
[1756602950150,7.31,204.5,204.4,2.41]
[1756602952255,7.31,204.5,204.46,2.41]
[1756602953056,7.31,204.56,204.46,2.41]
[1756602953956,7.31,204.56,204.48,1.47455697]
[1756602955054,7.31,204.56,204.46,2.41]
[1756602958758,7.31,204.54,204.42,1.47455697]
[1756602958952,7.31,204.54,204.4,5.56874127]
[1756602959350,7.31,204.52,204.4,5.56874127]
[1756602960664,7.31,204.52,204.39,6.5041843]
[1756602960860,7.31,204.5,204.39,4.0941843]
[1756602966064,8.78455697,204.5,204.38,6.5041843]
[1756602966270,8.78455697,204.5,204.37,4.0941843]
[1756602966571,7.31,204.46,204.35,6.5041843]
[1756602966770,7.31,204.46,204.35,2.41]
[1756602969370,7.31,204.46,204.33,5.56874127]
[1756602969563,7.31,204.46,204.33,1.47455697]
[1756602970674,7.31,204.46,204.37,2.42]
[1756602971974,7.31,204.46,204.34,1.47455697]
[1756602972171,8.78455697,204.46,204.34,1.47455697]
[1756602972370,8.78455697,204.46,204.33,2.42]
[1756602975677,7.31,204.46,204.33,2.42]
[1756602975878,8.78455697,204.46,204.33,2.42]
[1756602986885,7.29,204.44,204.35,2.41]
[1756602988883,16.49,204.44,204.35,2.41]
[1756602991481,7.29,204.44,204.35,2.41]
[1756602994993,7.29,204.5,204.4,2.41]
[1756602996291,7.29,204.5,204.43,2.41]
[1756602996790,7.29,204.55,204.47,2.41]
[1756602999098,7.29,204.55,204.48,1.47455697]
[1756602999297,7.29,204.55,204.49,2.42]
[1756603000104,7.41,204.58,204.5,1.47455697]
[1756603001696,7.41,204.58,204.53,1.47455697]
[1756603002189,7.41,204.62,204.54,2.42]
[1756603002794,7.41,204.62,204.56,1.47455697]
[1756603002998,29.4,204.63,204.57,2.42]
[1756603004102,7.41,204.65,204.59,1.47455697]
[1756603004301,7.41,204.65,204.59,3.89455697]
[1756603006204,7.41,204.65,204.55,1.47455697]
[1756603006798,7.41,204.65,204.56,2.42]
[1756603007005,7.41,204.65,204.59,2.42]
[1756603007312,328.76,204.69,204.61,3.89455697]
[1756603007313,336.17,204.69,204.61,3.89455697]
[1756603007704,7.41,204.69,204.61,3.89455697]
[1756603008706,7.41,204.69,204.61,2.42]
[1756603008908,7.41,204.69,204.59,1.47455697]
[1756603009210,7.41,204.69,204.57,2.42]
[1756603012607,1.47455697,204.68,204.57,2.42]
[1756603012808,7.41,204.67,204.57,2.42]
[1756603015916,7.41,204.67,204.52,92.25844099]
[1756603016113,7.41,204.63,204.52,2.42]
[1756603016308,32.27,204.63,204.52,2.42]
[1756603020016,24.86,204.63,204.47,2.42]
[1756603020219,7.41,204.62,204.49,2.42]
[1756603020421,7.41,204.6,204.49,2.42]
[1756603023822,7.41,204.6,204.51,2.42]
[1756603025114,7.41,204.6,204.48,2.42]
[1756603025916,7.41,204.6,204.47,1.47455697]
[1756603026114,7.41,204.57,204.45,2.42]
[1756603032827,7.9,204.55,204.45,2.42]
[1756603033027,9.37455697,204.55,204.45,2.42]
[1756603033224,7.9,204.54,204.43,91.73086861]
[1756603033721,1.47455697,204.55,204.43,91.73086861]
[1756603034131,7.9,204.54,204.43,91.73086861]
[1756603034622,1.47455697,204.55,204.43,91.73086861]
[1756603034821,7.9,204.54,204.43,91.73086861]
[1756603035122,1.47455697,204.55,204.43,91.73086861]
[1756603035328,7.9,204.54,204.42,2.41]
[1756603051538,7.9,204.54,204.43,1.47455697]
[1756603051741,7.9,204.54,204.44,2.41]
[1756603054843,7.9,204.54,204.47,2.41]
[1756603055943,7.9,204.58,204.5,2.41]
[1756603056151,7.9,204.58,204.52,1.47455697]
[1756603056542,7.9,204.58,204.52,2.41]
[1756603057645,328.66,204.59,204.53,1.47455697]
[1756603057847,7.53,204.61,204.54,2.4]
[1756603059545,2.32526712,204.68,204.48,1.47455697]
[1756603059546,27.82,204.66,204.55,1.47455697]
[1756603059749,7.53,204.65,204.56,2.4]
[1756603061150,7.53,204.65,204.59,2.4]
[1756603061364,7.53,204.7,204.59,2.4]
[1756603065260,7.53,204.7,204.57,1.47455697]
[1756603065661,1.47455697,204.68,204.53,2.4]
[1756603065963,7.53,204.67,204.53,3.87455697]
[1756603066559,1.47455697,204.65,204.53,3.87455697]
[1756603066759,43.81,204.64,204.53,1.47455697]
[1756603066963,43.81,204.64,204.54,2.4]
[1756603067161,7.53,204.64,204.57,2.4]
[1756603067858,7.53,204.64,204.59,1.47455697]
[1756603068063,69.89,204.67,204.6,2.4]
[1756603068263,7.53,204.67,204.6,2.4]
[1756603070063,121.16,204.69,204.6,2.4]
[1756603070359,121.16,204.69,204.63,2.4]
[1756603071360,7.53,204.76,204.63,2.4]
[1756603071558,7.53,204.74,204.66,2.4]
[1756603072868,7.53,204.74,204.63,3.87455697]
[1756603073365,9.00455697,204.74,204.59,1.47455697]
[1756603073564,7.53,204.8,204.7,2.4]
[1756603073764,7.53,204.8,204.67,3.87455697]
[1756603073967,9.00455697,204.8,204.67,3.87455697]
[1756603074468,9.00455697,204.8,204.67,2.4]
[1756603076568,7.53,204.8,204.67,2.4]
[1756603077773,7.53,204.78,204.67,3.87455697]
[1756603082074,7.53,204.78,204.63,1.47455697]
[1756603082270,7.53,204.78,204.66,3.87455697]
[1756603082469,7.53,204.76,204.66,3.87455697]
[1756603082670,7.53,204.76,204.69,3.87455697]
[1756603082868,14.68,204.93,204.6,1.47455697]
[1756603082869,7.53,204.8,204.73,2.4]
[1756603083065,7.53,204.9,204.78,1.47455697]
[1756603083270,7.53,204.9,204.81,1.47455697]
[1756603083568,7.53,204.9,204.79,2.4]
[1756603084062,7.53,204.9,204.78,1.47455697]
[1756603084467,7.53,204.9,204.76,2.4]
[1756603084468,7.53,204.87,204.76,2.4]
[1756603084664,7.53,204.87,204.73,1.47455697]
[1756603085269,7.53,204.85,204.73,1.47455697]
[1756603085465,7.53,204.83,204.73,1.47455697]
[1756603085669,7.53,204.83,204.72,2.4]
[1756603086565,9.00455697,204.83,204.72,2.4]
[1756603086875,9.00455697,204.83,204.68,3.87455697]
[1756603087172,7.53,204.79,204.68,3.87455697]
[1756603087668,7.53,204.79,204.56,4.05723247]
[1756603087669,1.47455697,204.76,204.63,2.42]
[1756603087870,7.57,204.75,204.67,2.42]
[1756603090170,7.57,204.75,204.64,1.47455697]
[1756603093072,7.57,204.75,204.62,2.42]
[1756603093073,9.04455697,204.75,204.62,2.42]
[1756603093472,7.57,204.71,204.59,3.89455697]
[1756603094879,7.57,204.71,204.59,2.42]
[1756603096486,9.04455697,204.71,204.59,2.42]
[1756603099581,7.57,204.69,204.58,1.47455697]
[1756603099784,7.57,204.69,204.58,3.89455697]
[1756603099986,9.04455697,204.69,204.58,2.42]
[1756603101584,57.18,204.68,204.58,2.42]
[1756603101887,57.18,204.68,204.58,3.89455697]
[1756603102184,7.57,204.69,204.58,1.47455697]
[1756603102484,7.57,204.69,204.53,4.05723247]
[1756603102485,7.57,204.69,204.62,2.4]
[1756603102882,7.57,204.73,204.65,2.4]
[1756603104390,7.57,204.73,204.61,1.47455697]
[1756603105285,1.47455697,204.72,204.61,1.47455697]
[1756603105486,7.57,204.71,204.6,2.4]
[1756603109692,9.04455697,204.71,204.6,2.4]
[1756603110990,7.57,204.67,204.56,2.4]
[1756603111195,51.71,204.67,204.56,2.4]
[1756603113696,7.57,204.66,204.52,1.47455697]
[1756603113895,1.47455697,204.65,204.52,1.47455697]
[1756603114091,7.57,204.64,204.52,1.47455697]
[1756603115087,7.57,204.62,204.53,2.4]
[1756603119691,9.04455697,204.62,204.49,3.85455697]
[1756603120595,9.04455697,204.62,204.49,2.38]
[1756603124695,7.57,204.62,204.49,2.38]
[1756603124999,15.75,204.62,204.51,2.38]
[1756603126394,7.39,204.6,204.46,1.47455697]
[1756603126594,7.39,204.6,204.47,2.38]
[1756603130898,7.39,204.58,204.47,2.38]
[1756603132003,52.51,204.58,204.47,2.38]
[1756603132903,74.82,204.62,204.53,2.38]
[1756603133094,82.21,204.62,204.53,2.38]
[1756603133699,82.21,204.62,204.49,3.85455697]
[1756603135701,7.39,204.59,204.49,2.38]
[1756603136806,110.91,204.59,204.49,2.38]
[1756603139013,7.39,204.59,204.49,2.38]
[1756603139209,129.25,204.59,204.49,2.38]
[1756603140013,7.39,204.59,204.49,2.38]
[1756603140508,7.39,204.59,204.5,2.38]